bitfinex/quotes_BTCUSD_20240727
["timestamp","ask_amount","ask_price","bid_price","bid_amount"]
[1722086372757,0.80174446,69001.0,69000.0,0.25958765]
[1722086372969,0.27525342,69001.0,69000.0,0.25958765]
[1722086373174,0.04316842,69001.0,69000.0,0.25958765]
[1722086373377,0.02916842,69001.0,69000.0,0.25958765]
[1722086373987,0.16009342,69001.0,69000.0,0.25958765]
[1722086374162,0.75379342,69001.0,69000.0,0.26051165]
[1722086374361,0.85879342,69001.0,69000.0,0.26051165]
[1722086374542,0.27409342,69001.0,69000.0,0.26051165]
[1722086374726,0.11516842,69001.0,69000.0,0.26051165]
[1722086374929,0.26309342,69001.0,69000.0,0.26051165]
[1722086375231,0.55294342,69001.0,69000.0,0.26051165]
[1722086375582,0.54994342,69001.0,69000.0,0.26051165]
[1722086375725,0.26009342,69001.0,69000.0,0.26051165]
[1722086375948,0.26309342,69001.0,69000.0,0.26051165]
[1722086376141,0.55494342,69001.0,69000.0,0.26051165]
[1722086376340,0.57569893,69001.0,69000.0,0.26051165]
[1722086376942,0.86754893,69001.0,69000.0,0.26051165]
[1722086377190,0.86454893,69001.0,69000.0,0.26051165]
[1722086377380,0.83979342,69001.0,69000.0,0.26051165]
[1722086377583,0.84279342,69001.0,69000.0,0.26051165]
[1722086377798,0.84379342,69001.0,69000.0,0.26051165]
[1722086377999,0.55094342,69001.0,69000.0,0.26051165]
[1722086378406,0.11816842,69001.0,69000.0,0.26051165]
[1722086378607,0.003,69001.0,69000.0,0.32591165]
[1722086378965,0.003,69001.0,69000.0,0.83779365]
[1722086379409,0.003,69001.0,69000.0,1.12764865]
[1722086379611,0.002,69001.0,69000.0,1.12764865]
[1722086379809,0.003,69001.0,69000.0,1.41750365]
[1722086380011,0.003,69001.0,69000.0,1.12764865]
[1722086380219,0.00084,69004.0,69001.0,0.1425]
[1722086380392,0.00084,69004.0,69001.0,0.14353105]
[1722086380589,0.00084,69004.0,69001.0,0.1415]
[1722086380817,0.02359009,69004.0,69001.0,0.1415]
[1722086380967,0.00084,69004.0,69001.0,0.1415]
[1722086381372,0.00184,69004.0,69001.0,0.1425]
[1722086381592,0.02458836,69004.0,69001.0,0.1425]
[1722086381772,0.02458836,69004.0,69001.0,0.1415]
[1722086381773,0.02358836,69004.0,69001.0,0.1415]
[1722086382197,0.02458836,69004.0,69001.0,0.1425]
[1722086383033,0.02558836,69004.0,69001.0,0.1425]
[1722086383800,0.02558836,69004.0,69001.0,0.1415]
[1722086383801,0.02458836,69004.0,69001.0,0.1415]
[1722086384009,0.02558836,69004.0,69001.0,0.1425]
[1722086384450,0.04833994,69004.0,69001.0,0.1425]
[1722086384648,0.04833994,69004.0,69001.0,0.1415]
[1722086384649,0.04733994,69004.0,69001.0,0.1415]
[1722086385032,0.04733994,69004.0,69001.0,0.1425]
[1722086385033,0.04833994,69004.0,69001.0,0.1425]
[1722086385235,1.014461,69002.0,69001.0,0.001]
[1722086385441,3.836716,69002.0,69001.0,0.001]
[1722086385650,1.101635,69001.0,69000.0,0.16338614]
[1722086385876,5.45354085,69001.0,69000.0,0.16338614]
[1722086386076,6.59365042,69001.0,69000.0,0.16338614]
[1722086386480,6.5949062,69001.0,69000.0,0.16338614]
[1722086387578,6.6089062,69001.0,69000.0,0.16338614]
[1722086387784,6.5949062,69001.0,69000.0,0.16338614]
[1722086388233,2.17341674,69001.0,69000.0,0.16338614]
[1722086388395,2.136508,69001.0,69000.0,0.16338614]
[1722086388874,2.15926662,69001.0,69000.0,0.16338614]
[1722086389019,2.17326662,69001.0,69000.0,0.16338614]
[1722086389871,2.46383562,69001.0,69000.0,0.16338614]
[1722086390094,2.61409519,69001.0,69000.0,0.16338614]
[1722086390234,2.60009519,69001.0,69000.0,0.16338614]
[1722086390438,2.58609519,69001.0,69000.0,0.16338614]
[1722086390650,2.60009519,69001.0,69000.0,0.16338614]
[1722086391062,2.15998562,69001.0,69000.0,0.16338614]
[1722086391218,2.150508,69001.0,69000.0,0.16338614]
[1722086391412,2.17415808,69001.0,69000.0,0.16338614]
[1722086391919,4.34665408,69001.0,69000.0,0.16338614]
[1722086392121,4.13329708,69001.0,69000.0,0.16338614]
[1722086392349,4.28355665,69001.0,69000.0,0.16338614]
[1722086392555,4.03888665,69001.0,69000.0,0.16338614]
[1722086393222,3.53909095,69001.0,69000.0,0.16338614]
[1722086394376,3.82894095,69001.0,69000.0,0.16338614]
[1722086394593,3.53409095,69001.0,69000.0,0.16338614]
[1722086394993,3.52009095,69001.0,69000.0,0.16338614]
[1722086395484,3.80994095,69001.0,69000.0,0.16338614]
[1722086396074,3.82510937,69001.0,69000.0,0.16338614]
[1722086396294,3.82347704,69001.0,69000.0,0.1503082]
[1722086396686,3.84623676,69001.0,69000.0,0.1503082]
[1722086396837,3.70997719,69001.0,69000.0,0.1503082]
[1722086397441,3.37436747,69001.0,69000.0,0.1503082]
[1722086397647,2.40086147,69001.0,69000.0,0.1503082]
[1722086398468,2.04921147,69001.0,69000.0,0.1503082]
[1722086398889,2.33906147,69001.0,69000.0,0.1503082]
[1722086399242,2.04921147,69001.0,69000.0,0.1503082]
[1722086399530,2.02682342,69001.0,69000.0,0.1503082]
[1722086399649,2.06720607,69001.0,69000.0,0.1503082]
[1722086400008,2.06973452,69001.0,69000.0,0.1503082]
[1722086400432,2.35958452,69001.0,69000.0,0.1503082]
[1722086400616,2.06973452,69001.0,69000.0,0.1503082]
[1722086400956,2.35958452,69001.0,69000.0,0.1503082]
[1722086401326,4.11790609,69001.0,69000.0,0.1503082]
[1722086401529,4.80273767,69001.0,69000.0,0.13723091]
[1722086402149,4.6752341,69001.0,69000.0,0.13723091]
[1722086402349,4.6524781,69001.0,69000.0,0.13723091]
[1722086402559,4.9423281,69001.0,69000.0,0.13723091]
[1722086402769,4.94297756,69001.0,69000.0,0.13723091]
[1722086403189,1.101946,68980.0,68972.0,0.0619]
[1722086403387,1.101946,68980.0,68973.0,0.0786]
[1722086403388,3.628578,68980.0,68973.0,0.0786]
[1722086403599,2.504042,68980.0,68973.0,0.0786]
[1722086403805,2.527042,68980.0,68973.0,0.0786]
[1722086404008,2.390332,68980.0,68973.0,0.0786]
[1722086404216,2.332352,68980.0,68973.0,0.0786]
[1722086404577,2.333352,68980.0,68973.0,0.0786]
[1722086404982,2.335352,68980.0,68973.0,0.0786]
[1722086405485,0.72491,68974.0,68973.0,0.0786]
[1722086405686,1.96903,68974.0,68973.0,0.0786]
[1722086405916,1.96903,68974.0,68967.0,0.1405]
[1722086405917,0.724972,68968.0,68967.0,0.1405]
[1722086406117,0.824972,68968.0,68967.0,0.1405]
[1722086406536,0.824972,68968.0,68964.0,0.000924]
[1722086406537,0.435003,68965.0,68964.0,0.000924]
[1722086406687,0.825005,68965.0,68964.0,0.000924]
[1722086407687,0.826005,68965.0,68964.0,0.000924]
[1722086407885,0.827005,68965.0,68964.0,0.000924]
[1722086408093,0.93176947,68965.0,68964.0,0.000924]
[1722086408464,0.93076947,68965.0,68964.0,0.000924]
[1722086408792,0.95453319,68965.0,68964.0,0.000924]
[1722086409005,0.101,68965.0,68964.0,0.000924]
[1722086409201,0.001,68965.0,68964.0,0.1423782]
[1722086409414,0.101,68965.0,68964.0,0.1423782]
[1722086409768,0.101,68965.0,68964.0,0.140824]
[1722086410300,0.1,68965.0,68964.0,0.140824]
[1722086410575,0.435003,68965.0,68964.0,0.000924]
[1722086410753,0.001,68965.0,68964.0,0.000924]
[1722086410970,0.102,68965.0,68964.0,0.000924]
[1722086411325,0.101496,68965.0,68964.0,0.000924]
[1722086411552,0.826501,68965.0,68964.0,0.000924]
[1722086411940,0.246001,68965.0,68964.0,0.000924]
[1722086412141,0.826005,68965.0,68964.0,0.000924]
[1722086412532,1.116007,68965.0,68964.0,0.000924]
[1722086412727,0.826005,68965.0,68964.0,0.000924]
[1722086413009,0.12376319,68965.0,68964.0,0.062924]
[1722086413213,0.02376319,68965.0,68964.0,0.062924]
[1722086413396,0.12276319,68965.0,68964.0,0.062924]
[1722086413543,0.26276419,68965.0,68964.0,0.062924]
[1722086413744,0.85076819,68965.0,68964.0,0.062924]
[1722086413975,0.89669885,68965.0,68964.0,0.000924]
[1722086414179,1.27586085,68965.0,68964.0,0.000924]
[1722086414996,1.27486085,68965.0,68964.0,0.000924]
[1722086415160,1.27586085,68965.0,68964.0,0.000924]
[1722086415355,2.89385085,68965.0,68964.0,0.000924]
[1722086415580,2.77316691,68965.0,68964.0,0.000924]
[1722086416242,2.54342005,68965.0,68964.0,0.000924]
[1722086416417,2.69367962,68965.0,68964.0,0.000924]
[1722086416579,2.68367962,68965.0,68964.0,0.000924]
[1722086416940,2.69667962,68965.0,68964.0,0.000924]
[1722086417083,2.70967962,68965.0,68964.0,0.000924]
[1722086417702,2.32726106,68965.0,68964.0,0.000924]
[1722086418001,1.79025106,68965.0,68964.0,0.000924]
[1722086418783,1.78984837,68965.0,68964.0,0.000924]
[1722086419167,1.6184168,68965.0,68964.0,0.000924]
[1722086419958,0.18447336,68965.0,68964.0,0.000924]
[1722086420176,0.18447336,68965.0,68964.0,0.0644782]
[1722086420372,0.06652933,68965.0,68964.0,0.1423782]
[1722086420584,0.04376319,68965.0,68964.0,0.140824]
[1722086420963,0.03076319,68965.0,68964.0,0.140824]
[1722086421168,0.46176619,68965.0,68964.0,0.140824]
[1722086421391,0.75176819,68965.0,68964.0,0.140824]
[1722086421588,0.74276819,68965.0,68964.0,0.140824]
[1722086421742,0.45276619,68965.0,68964.0,0.078824]
[1722086421983,0.01776319,68965.0,68964.0,0.078824]
[1722086422932,0.01876319,68965.0,68964.0,0.079824]
[1722086423315,0.16376419,68965.0,68964.0,0.080824]
[1722086423698,0.59234048,68965.0,68964.0,0.078824]
[1722086423906,0.59234048,68965.0,68964.0,0.080824]
[1722086424200,0.59234048,68965.0,68964.0,0.078824]
[1722086424601,0.57553024,68965.0,68964.0,0.080824]
[1722086424918,0.57553024,68965.0,68964.0,0.081824]
[1722086425121,0.59243928,68965.0,68964.0,0.081824]
[1722086425322,0.57553024,68965.0,68964.0,0.081824]
[1722086425525,0.84276819,68965.0,68964.0,0.081824]
[1722086425925,0.85971761,68965.0,68964.0,0.081824]
[1722086428543,0.84276819,68965.0,68964.0,0.081824]
[1722086428743,0.8824238,68965.0,68964.0,0.081824]
[1722086428957,0.8824238,68965.0,68964.0,0.079824]
[1722086430170,0.8824238,68965.0,68964.0,0.000924]
[1722086430544,1.40740523,68965.0,68964.0,0.000924]
[1722086430672,2.22552423,68965.0,68964.0,0.000924]
[1722086430872,2.0957048,68965.0,68964.0,0.000924]
[1722086431102,2.0020218,68965.0,68964.0,0.000924]
[1722086431305,1.7798678,68965.0,68964.0,0.000924]
[1722086431704,1.7888678,68965.0,68964.0,0.000924]
[1722086432073,1.7702468,68965.0,68964.0,0.000924]
[1722086432277,0.7055818,68965.0,68964.0,0.000924]
[1722086432909,0.9955838,68965.0,68964.0,0.000924]
[1722086433224,1.14584337,68965.0,68964.0,0.000924]
[1722086433425,1.43608094,68965.0,68964.0,0.000924]
[1722086434484,1.28582137,68965.0,68964.0,0.000924]
[1722086434900,2.43394137,68965.0,68964.0,0.000924]
[1722086435311,2.43303745,68965.0,68964.0,0.000924]
[1722086436106,1.28491745,68965.0,68964.0,0.000924]
[1722086436306,2.85843645,68965.0,68964.0,0.000924]
[1722086436649,2.75369602,68965.0,68964.0,0.000924]
[1722086436785,2.77646214,68965.0,68964.0,0.000924]
[1722086437220,2.71189602,68965.0,68964.0,0.000924]
[1722086437877,2.56163645,68965.0,68964.0,0.000924]
[1722086438168,1.09709445,68965.0,68964.0,0.000924]
[1722086438575,1.09716159,68965.0,68964.0,0.000924]
[1722086439219,0.812175,68964.0,68963.0,0.00704795]
[1722086439425,0.9512294,68964.0,68963.0,0.00704795]
[1722086439647,0.6612234,68964.0,68963.0,0.00704795]
[1722086439849,0.9512294,68964.0,68963.0,0.00704795]
[1722086440566,0.97399603,68964.0,68963.0,0.00704795]
[1722086440694,0.96299603,68964.0,68963.0,0.00704795]
[1722086440935,0.67299003,68964.0,68963.0,0.00704795]
[1722086441279,0.97399603,68964.0,68963.0,0.00704795]
[1722086442229,1.10019903,68964.0,68963.0,0.00704795]
[1722086442437,1.0774324,68964.0,68963.0,0.00704795]
[1722086443783,1.3674384,68964.0,68963.0,0.00704795]
[1722086443937,1.3904384,68964.0,68963.0,0.00704795]
[1722086445987,2.6574994,68964.0,68963.0,0.00704795]
[1722086446193,2.5744524,68964.0,68963.0,0.00704795]
[1722086446445,2.4809524,68964.0,68963.0,0.00704795]
[1722086446593,2.2732584,68964.0,68963.0,0.00704795]
[1722086446807,2.2532584,68964.0,68963.0,0.00704795]
[1722086447009,1.1853764,68964.0,68963.0,0.00704795]
[1722086447238,1.1128794,68964.0,68963.0,0.00704795]
[1722086447441,1.26313897,68964.0,68963.0,0.00704795]
[1722086447664,1.43271453,68964.0,68963.0,0.00704795]
[1722086447906,1.40994746,68964.0,68963.0,0.00704795]
[1722086448059,1.25968789,68964.0,68963.0,0.00704795]
[1722086448251,1.4028854,68964.0,68963.0,0.00704795]
[1722086448459,1.386831,68964.0,68963.0,0.00704795]
[1722086448666,1.40340777,68964.0,68963.0,0.00704795]
[1722086448859,1.55366734,68964.0,68963.0,0.00704795]
[1722086449219,1.40340777,68964.0,68963.0,0.00704795]
[1722086449428,1.40959769,68964.0,68963.0,0.00704795]
[1722086449568,1.42625958,68964.0,68963.0,0.00704795]
[1722086451412,1.85766558,68964.0,68963.0,0.00704795]
[1722086451627,1.85766558,68964.0,68955.0,0.07512979]
[1722086451628,1.01226,68956.0,68955.0,0.07512979]
[1722086451941,1.4253,68956.0,68955.0,0.07512979]
[1722086452112,1.44181556,68956.0,68955.0,0.07512979]
[1722086452334,1.98960856,68956.0,68955.0,0.07512979]
[1722086453114,2.13252815,68956.0,68955.0,0.07512979]
[1722086453333,2.14052815,68956.0,68955.0,0.07512979]
[1722086453958,2.00113845,68956.0,68955.0,0.07512979]
[1722086454151,1.33277545,68956.0,68955.0,0.07512979]
[1722086454586,1.01971745,68956.0,68955.0,0.07512979]
[1722086454782,1.30075745,68956.0,68955.0,0.07512979]
[1722086454985,1.32352825,68956.0,68955.0,0.07512979]
[1722086455304,1.33423742,68956.0,68955.0,0.07512979]
[1722086455526,1.34723742,68956.0,68955.0,0.07512979]
[1722086456516,0.87797462,68956.0,68955.0,0.07512979]
[1722086456711,1.01018762,68956.0,68955.0,0.07512979]
[1722086456921,1.37043346,68956.0,68955.0,0.07512979]
[1722086457294,1.30022762,68956.0,68955.0,0.07512979]
[1722086457933,1.30022762,68956.0,68949.0,0.008976]
[1722086457934,0.812322,68950.0,68949.0,0.008976]
[1722086458135,0.92942868,68950.0,68949.0,0.008976]
[1722086458482,0.912322,68950.0,68949.0,0.008976]
[1722086458818,0.92963271,68950.0,68949.0,0.008976]
[1722086459181,1.34666578,68950.0,68949.0,0.008976]
[1722086459385,1.24746946,68950.0,68949.0,0.008976]
[1722086460049,0.96440446,68950.0,68949.0,0.008976]
[1722086460841,1.25446946,68950.0,68949.0,0.008976]
[1722086461048,1.25469771,68950.0,68949.0,0.008976]
[1722086461270,0.94163271,68950.0,68949.0,0.008976]
[1722086461522,0.12931071,68950.0,68949.0,0.147976]
[1722086461800,0.27434271,68950.0,68949.0,0.147976]
[1722086461970,0.27380434,68950.0,68949.0,0.147976]
[1722086462179,0.94120434,68950.0,68949.0,0.008976]
[1722086462391,1.53156987,68950.0,68949.0,0.008976]
[1722086463347,1.82163487,68950.0,68949.0,0.008976]
[1722086463572,1.84463487,68950.0,68949.0,0.008976]
[1722086463743,1.82687287,68950.0,68949.0,0.008976]
[1722086464385,1.72651803,68950.0,68949.0,0.008976]
[1722086465207,1.70974569,68950.0,68949.0,0.008976]
[1722086465397,1.43368908,68950.0,68949.0,0.008976]
[1722086465757,0.94038239,68950.0,68949.0,0.008976]
[1722086465956,0.93538239,68950.0,68949.0,0.008976]
[1722086466157,0.21022039,68950.0,68949.0,0.008976]
[1722086466364,0.13195039,68950.0,68949.0,0.155576]
[1722086466573,0.03195039,68950.0,68949.0,0.155576]
[1722086466817,0.02495039,68950.0,68949.0,0.155576]
[1722086467018,0.16998239,68950.0,68949.0,0.155576]
[1722086467158,0.03495039,68950.0,68949.0,0.155576]
[1722086467581,0.05011881,68950.0,68949.0,0.155576]
[1722086468157,0.19515081,68950.0,68949.0,0.155576]
[1722086468360,0.27920042,68950.0,68949.0,0.155576]
[1722086468554,0.29537201,68950.0,68949.0,0.155576]
[1722086468956,0.31814334,68950.0,68949.0,0.155576]
[1722086469716,0.29537201,68950.0,68949.0,0.089076]
[1722086470320,0.15034001,68950.0,68949.0,0.089076]
[1722086471038,0.29537201,68950.0,68949.0,0.089076]
[1722086471152,0.15034001,68950.0,68949.0,0.089076]
[1722086471359,0.03416842,68950.0,68949.0,0.152476]
[1722086471996,0.05024355,68950.0,68949.0,0.152476]
[1722086472198,0.19527555,68950.0,68949.0,0.152476]
[1722086472512,0.17627555,68950.0,68949.0,0.089076]
[1722086472719,0.46634055,68950.0,68949.0,0.089076]
[1722086472956,0.85640555,68950.0,68949.0,0.089076]
[1722086473171,0.94367555,68950.0,68949.0,0.008976]
[1722086473370,1.25650937,68950.0,68949.0,0.008976]
[1722086473610,1.47950937,68950.0,68949.0,0.008976]
[1722086473923,2.15773237,68950.0,68949.0,0.009976]
[1722086474121,2.15873237,68950.0,68949.0,0.009976]
[1722086474363,2.39994835,68950.0,68949.0,0.008976]
[1722086474712,2.25951935,68950.0,68949.0,0.008976]
[1722086475011,2.11485254,68950.0,68949.0,0.008976]
[1722086475162,1.74618854,68950.0,68949.0,0.008976]
[1722086475362,1.65886854,68950.0,68949.0,0.008976]
[1722086475813,1.66886854,68950.0,68949.0,0.008976]
[1722086476009,2.03573354,68950.0,68949.0,0.008976]
[1722086476251,3.0806891,68950.0,68949.0,0.008976]
[1722086476451,2.39881454,68950.0,68949.0,0.008976]
[1722086477474,2.42158686,68950.0,68949.0,0.008976]
[1722086478100,2.39879258,68950.0,68949.0,0.008976]
[1722086478742,2.46219258,68950.0,68949.0,0.008976]
[1722086479139,3.53334858,68950.0,68949.0,0.008976]
[1722086479340,3.68360815,68950.0,68949.0,0.008976]
[1722086479915,3.67260815,68950.0,68949.0,0.008976]
[1722086480221,3.95267315,68950.0,68949.0,0.008976]
[1722086480442,3.95267315,68950.0,68940.0,0.07512979]
[1722086480443,0.2,68941.0,68940.0,0.07512979]
[1722086480656,3.52875534,68941.0,68940.0,0.07512979]
[1722086480885,3.77902057,68941.0,68940.0,0.07512979]
[1722086481074,3.82303261,68941.0,68940.0,0.07512979]
[1722086481485,3.84580848,68941.0,68940.0,0.07512979]
[1722086481852,1.012622,68932.0,68928.0,0.0803]
[1722086482047,1.77874657,68932.0,68928.0,0.0803]
[1722086482273,0.41236057,68932.0,68928.0,0.0803]
[1722086482719,0.32509057,68932.0,68928.0,0.0803]
[1722086482940,0.12509057,68932.0,68931.0,0.064324]
[1722086483122,0.10904623,68932.0,68931.0,0.140024]
[1722086483685,0.14908137,68932.0,68931.0,0.140024]
[1722086484125,0.10904623,68932.0,68931.0,0.140024]
[1722086484673,0.04888517,68932.0,68931.0,0.140024]
[1722086484966,0.04888982,68933.0,68931.0,0.140024]
[1722086485148,0.02277536,68932.0,68931.0,0.140024]
[1722086485352,0.07166518,68932.0,68931.0,0.140024]
[1722086485580,0.04888982,68932.0,68931.0,0.140024]
[1722086485765,0.04888982,68933.0,68931.0,0.140024]
[1722086485965,0.04888982,68932.0,68931.0,0.140024]
[1722086486174,0.11516842,68934.0,68931.0,0.140024]
[1722086486175,0.04888982,68933.0,68931.0,0.140024]
[1722086486395,0.00904577,68932.0,68931.0,0.140024]
[1722086486535,0.00904577,68932.0,68931.0,0.115024]
[1722086487146,0.00904577,68933.0,68931.0,0.115024]
[1722086487367,0.00904577,68932.0,68931.0,0.115024]
[1722086487802,0.00904577,68933.0,68931.0,0.115024]
[1722086488333,0.03182071,68933.0,68931.0,0.115024]
[1722086488534,0.00904577,68932.0,68931.0,0.115024]
[1722086491384,0.00904523,68932.0,68931.0,0.115024]
[1722086492628,0.04804031,68932.0,68931.0,0.115024]
[1722086492828,0.00904523,68932.0,68931.0,0.115024]
[1722086492979,0.04807892,68932.0,68931.0,0.115024]
[1722086493928,0.04807892,68932.0,68931.0,0.0757]
[1722086494134,0.00904523,68932.0,68931.0,0.0757]
[1722086494830,0.00904556,68932.0,68931.0,0.0757]
[1722086495820,0.00904556,68933.0,68931.0,0.0757]
[1722086496137,0.00904556,68933.0,68932.0,0.0637542]
[1722086496717,0.00904556,68933.0,68932.0,0.0571542]
[1722086497321,0.001,68933.0,68932.0,0.0571542]
[1722086497501,0.0237741,68933.0,68932.0,0.0571542]
[1722086497749,0.03181966,68933.0,68932.0,0.0571542]
[1722086497952,0.03181904,68933.0,68932.0,0.0571542]
[1722086498149,0.03281904,68933.0,68932.0,0.0571542]
[1722086498374,0.03281904,68933.0,68932.0,0.2022242]
[1722086498576,0.03281904,68933.0,68932.0,0.2773242]
[1722086498977,0.01004494,68933.0,68932.0,0.2773242]
[1722086499353,0.01004494,68933.0,68932.0,0.1322542]
[1722086499894,0.01104494,68933.0,68932.0,0.1322542]
[1722086500097,0.01004494,68933.0,68932.0,0.1322542]
[1722086500302,0.01104494,68933.0,68932.0,0.1322542]
[1722086501086,0.01104494,68933.0,68932.0,0.2773242]
[1722086501289,0.01104383,68933.0,68932.0,1.1477472]
[1722086501521,0.01104383,68933.0,68932.0,1.1497472]
[1722086501522,0.002,68933.0,68932.0,1.1497472]
[1722086501719,0.02459801,68933.0,68932.0,1.1497472]
[1722086501938,0.02543801,68933.0,68932.0,1.1497472]
[1722086502270,0.0026654,68933.0,68932.0,1.1497472]
[1722086502515,0.00184,68933.0,68932.0,1.1497472]
[1722086502920,0.00184,68933.0,68932.0,1.1527472]
[1722086502921,0.00284,68933.0,68932.0,1.1527472]
[1722086503331,0.00184,68933.0,68932.0,1.1527472]
[1722086503576,0.00184,68933.0,68932.0,1.1557472]
[1722086503577,0.00284,68933.0,68932.0,1.1557472]
[1722086503785,0.00284,68933.0,68932.0,0.8656062]
[1722086503989,0.00184,68933.0,68932.0,0.8606062]
[1722086504644,0.00284,68933.0,68932.0,0.8666062]
[1722086505518,0.02561104,68933.0,68932.0,0.5764652]
[1722086505857,0.02561104,68933.0,68932.0,0.8666062]
[1722086506301,0.02561104,68933.0,68932.0,1.1587472]
[1722086506524,0.00284,68933.0,68932.0,1.1587472]
[1722086509104,0.00284,68933.0,68932.0,1.1567472]
[1722086509712,0.02560989,68933.0,68932.0,1.1567472]
[1722086510072,0.02560989,68933.0,68932.0,1.4488882]
[1722086510323,0.02560989,68933.0,68932.0,1.1587472]
[1722086510947,0.00284,68933.0,68932.0,1.1587472]
[1722086513282,0.00284,68933.0,68932.0,1.4779782]
[1722086514232,0.02460859,68933.0,68932.0,1.4719782]
[1722086514437,0.00284,68933.0,68932.0,1.4779782]
[1722086515657,0.00284,68933.0,68932.0,1.4889782]
[1722086516085,0.02276882,68950.0,68949.0,1.285641]
[1722086516228,0.02276882,68950.0,68949.0,0.997572]
[1722086516427,0.02276882,68950.0,68949.0,0.995572]
[1722086516879,0.02276882,68950.0,68949.0,0.788972]
[1722086517507,0.02276882,68950.0,68949.0,0.802972]
[1722086517964,0.04553543,68950.0,68949.0,0.802972]
[1722086518101,0.02276882,68950.0,68949.0,0.802972]
[1722086518922,0.02276882,68950.0,68949.0,0.794972]
[1722086519249,0.02276882,68950.0,68949.0,0.802972]
[1722086519600,0.02376882,68950.0,68949.0,0.816972]
[1722086520353,0.02376882,68950.0,68949.0,0.236834]
[1722086520618,0.02376882,68950.0,68949.0,0.526903]
[1722086520763,0.02376882,68950.0,68949.0,0.463103]
[1722086520967,0.04653547,68950.0,68949.0,0.53823279]
[1722086521535,0.02376882,68950.0,68949.0,0.53823279]
[1722086522715,0.08896882,68950.0,68949.0,0.10312979]
[1722086522956,0.09801053,68950.0,68949.0,0.10312979]
[1722086523631,0.09701053,68950.0,68949.0,0.07512979]
[1722086523991,0.09701053,68950.0,68949.0,0.07612979]
[1722086524190,0.09701053,68950.0,68949.0,0.07512979]
[1722086524454,0.03181053,68950.0,68949.0,0.07512979]
[1722086524760,0.05457971,68950.0,68949.0,0.07512979]
[1722086524895,0.05457925,68950.0,68949.0,0.07512979]
[1722086525823,0.05457925,68950.0,68949.0,0.22816379]
[1722086525999,0.05457925,68950.0,68949.0,0.08312979]
[1722086526228,0.05457925,68950.0,68949.0,0.51823279]
[1722086526428,0.0455375,68950.0,68949.0,0.51823279]
[1722086526628,0.0545793,68950.0,68949.0,0.51823279]
[1722086526832,0.02276882,68950.0,68949.0,0.51823279]
[1722086527271,0.03181065,68950.0,68949.0,0.22816379]
[1722086527472,0.03181065,68950.0,68949.0,0.08312979]
[1722086527827,0.02276882,68950.0,68949.0,0.08312979]
[1722086528060,0.03181115,68950.0,68949.0,0.08312979]
[1722086530060,0.05457885,68950.0,68949.0,0.08312979]
[1722086530461,0.03181115,68950.0,68949.0,0.08312979]
[1722086531028,0.82364469,68950.0,68949.0,0.08312979]
[1722086531228,1.31945394,68950.0,68949.0,0.008]
[1722086531428,1.63251894,68950.0,68949.0,0.008]
[1722086531833,2.91920394,68950.0,68949.0,0.008]
[1722086532249,2.91920394,68950.0,68949.0,0.005]
[1722086532423,0.145047,68943.0,68942.0,0.07512979]
[1722086532594,0.91682412,68943.0,68942.0,0.07512979]
[1722086532796,1.00834912,68943.0,68942.0,0.07512979]
[1722086533181,1.29844312,68943.0,68942.0,0.07512979]
[1722086533388,0.95566912,68943.0,68942.0,0.07512979]
[1722086533612,0.97843991,68943.0,68942.0,0.07512979]
[1722086533848,1.00276656,68943.0,68942.0,0.07512979]
[1722086534053,1.55735811,68943.0,68942.0,0.07912979]
[1722086534172,1.84745211,68943.0,68942.0,0.07912979]
[1722086534372,1.86836593,68943.0,68942.0,0.07912979]
[1722086534771,1.86992013,68943.0,68942.0,0.07912979]
[1722086534995,1.86836593,68943.0,68942.0,0.08112979]
[1722086535445,1.89136593,68943.0,68942.0,0.08112979]
[1722086535717,1.89136593,68943.0,68942.0,0.07912979]
[1722086535718,1.60282613,68943.0,68942.0,0.07912979]
[1722086535925,0.48481704,68943.0,68942.0,0.08012979]
[1722086536126,0.14081638,68943.0,68942.0,0.08012979]
[1722086536327,0.14081638,68943.0,68942.0,0.07612979]
[1722086536535,0.04081638,68943.0,68942.0,0.36622779]
[1722086536740,0.04681638,68943.0,68942.0,0.22217879]
[1722086536955,0.02277079,68943.0,68942.0,0.58767679]
[1722086537363,0.02277079,68943.0,68942.0,0.59167679]
[1722086537576,0.02277079,68943.0,68942.0,0.30157879]
[1722086537723,0.02277079,68943.0,68942.0,0.59167679]
[1722086538345,0.02777079,68943.0,68942.0,0.59167679]
[1722086538560,0.02777079,68943.0,68942.0,0.88177479]
[1722086538743,0.0455405,68943.0,68942.0,0.59167679]
[1722086539392,0.0455405,68943.0,68942.0,0.88177479]
[1722086539594,0.0455405,68943.0,68942.0,0.87977479]
[1722086540211,0.02377079,68943.0,68942.0,0.60067679]
[1722086540443,0.02377079,68943.0,68942.0,0.31057879]
[1722086540817,0.02377079,68943.0,68942.0,0.30857879]
[1722086542243,0.02477079,68943.0,68942.0,0.31757879]
[1722086542441,0.02477079,68943.0,68942.0,0.17252979]
[1722086542671,0.02477079,68943.0,68942.0,0.09512979]
[1722086542822,0.09991343,68943.0,68942.0,0.09512979]
[1722086543039,0.12268339,68943.0,68942.0,0.09512979]
[1722086543398,0.09991343,68943.0,68942.0,0.09512979]
[1722086545762,0.19991343,68943.0,68942.0,0.09512979]
[1722086546405,0.20146763,68943.0,68942.0,0.09512979]
[1722086546658,0.25474001,68943.0,68942.0,0.09512979]
[1722086547219,0.25374001,68943.0,68942.0,0.08412979]
[1722086547394,0.21419726,68943.0,68942.0,0.08412979]
[1722086547595,0.25374021,68943.0,68942.0,0.08412979]
[1722086547992,0.39878721,68943.0,68942.0,0.08412979]
[1722086548202,0.25374021,68943.0,68942.0,0.08712979]
[1722086548415,0.22996794,68943.0,68942.0,0.07812979]
[1722086548671,0.22996794,68943.0,68942.0,0.08112979]
[1722086549609,0.19946961,68943.0,68942.0,0.08112979]
[1722086549794,0.22975833,68943.0,68942.0,0.08112979]
[1722086550478,0.37480533,68943.0,68942.0,0.08112979]
[1722086550849,0.33547199,68943.0,68942.0,0.08112979]
[1722086551023,0.37470936,68943.0,68942.0,0.08112979]
[1722086551565,0.39748237,68943.0,68942.0,0.08112979]
[1722086551818,0.25243537,68943.0,68942.0,0.08112979]
[1722086552057,0.22966236,68943.0,68942.0,0.08112979]
[1722086552323,0.22810816,68943.0,68942.0,0.08112979]
[1722086552728,0.22966236,68943.0,68942.0,0.08112979]
[1722086553528,0.19946959,68943.0,68942.0,0.08112979]
[1722086553731,0.22978111,68943.0,68942.0,0.08112979]
[1722086554249,0.22978387,68943.0,68942.0,0.08112979]
[1722086554767,0.25255645,68943.0,68942.0,0.08112979]
[1722086556338,0.26084578,68943.0,68942.0,0.08112979]